[Event "URU-ch Women 2021"]
[Site "Montevideo"]
[Date "2021.03.04"]
[Round "1.1"]
[White "Fabra, Nahiara"]
[Black "Silva Rosas, Natalia"]
[Result "0-1"]
[ECO "A52"]
[WhiteElo "1419"]
[BlackElo "1771"]
[Annotator "NA RC"]
[PlyCount "62"]
[EventDate "2021.03.04"]
[EventType "tourn"]
[EventCountry "URU"]
[SourceTitle "playchess.com"]
[Source "ChessBase"]
[SourceQuality "1"]
[TimeControl "3600+30"]

1. d4 {[%emt 0:00:00]} Nf6 {[%emt 0:00:00]} 2. c4 {[%emt 0:00:00]} e5 {[%emt 0:00:00]} 3. dxe5 {[%emt 0:02:27]} Ng4 {[%emt 0:00:00]} 4. Nf3 {[%emt 0:03:02]} Nc6 {[%emt 0:01:30]} 5. g3 {[%emt 0:03:45]} Bc5 {[%emt 0:01:07]} 6. e3 {[%emt 0:03:30]} Ngxe5 {[%emt 0:02:56]} 7. Nxe5 {[%emt 0:02:54]} Nxe5 {[%emt 0:00:02]} 8. Qd5 {[%emt 0:00:55]} Bb4+ {[%emt 0:01:53]} 9. Bd2 {[%emt 0:04:10]} Bxd2+ {[%emt 0:05:02]} 10. Nxd2 {[%emt 0:00:33]} Qe7 {[%emt 0:00:55]} 11. Bg2 {[%emt 0:02:04]} O-O {[%emt 0:00:53]} 12. O-O {[%emt 0:03:35]} d6 {[%emt 0:01:29]} 13. Qe4 {[%emt 0:03:43]} f5 {[%emt 0:04:19]} 14. Qc2 {[%emt 0:01:50]} c6 {[%emt 0:00:30]} 15. Rae1 {[%emt 0:03:45]} Be6 {[%emt 0:01:52]} 16. f4 {[%emt 0:02:06]} Ng4 {[%emt 0:02:18]} 17. e4 {[%emt 0:01:59]} Qc7 {[%emt 0:01:42]} 18. h3 {[%emt 0:05:14]} Nh6 {[%emt 0:01:25]} 19. e5 {[%emt 0:02:13]} Rad8 {[%emt 0:01:34]} 20. Nf3 {[%emt 0:06:19]} Qb6+ {[%emt 0:03:43]} 21. Kh2 {[%emt 0:02:47]} d5 {[%emt 0:10:47]} 22. Ng5 {[%emt 0:01:48]} Rfe8 {[%emt 0:00:57]} 23. Nxe6 {[%emt 0:02:13]} Rxe6 {[%emt 0:00:02]} 24. cxd5 {[%emt 0:04:20]} cxd5 {[%emt 0:01:07]} 25. Rd1 {[%emt 0:01:12]} Ng4+ {[%emt 0:02:08]} 26. hxg4 {[%emt 0:02:05]} Rh6+ {[%emt 0:00:09]} 27. Bh3 {[%emt 0:01:17]} fxg4 {[%emt 0:01:26]} 28. Qf2 {[%emt 0:01:50]} Rxh3+ {[%emt 0:00:40]} 29. Kg2 {[%emt 0:01:01]} d4 {[%emt 0:00:16]} 30. Rh1 {[%emt 0:00:27]} Qc6+ {[%emt 0:00:16]} 31. Qf3 {[%emt 0:01:01]} Qxf3+ {[%emt 0:00:09]} 0-1

[Event "URU-ch Women 2021"]
[Site "Montevideo"]
[Date "2021.03.04"]
[Round "1.2"]
[White "Quevedo, Andreina"]
[Black "Larrea, Daniela"]
[Result "1-0"]
[ECO "C41"]
[WhiteElo "1867"]
[BlackElo "1705"]
[Annotator "NA RC"]
[PlyCount "79"]
[EventDate "2021.03.04"]
[EventType "tourn"]
[EventCountry "URU"]
[SourceTitle "playchess.com"]
[Source "ChessBase"]
[SourceQuality "1"]
[TimeControl "3600+30"]

1. e4 {[%emt 0:00:00]} d6 {[%emt 0:00:00]} 2. d4 {[%emt 0:00:01]} e5 {[%emt 0:00:00]} 3. Nf3 {[%emt 0:00:14]} Nd7 {[%emt 0:00:22]} 4. Bc4 {[%emt 0:01:37]} Be7 {[%emt 0:01:34]} 5. O-O {[%emt 0:00:15]} Ngf6 {[%emt 0:02:05]} 6. Nc3 {[%emt 0:00:21]} O-O {[%emt 0:00:17]} 7. a4 {[%emt 0:02:27]} a5 {[%emt 0:02:57]} 8. Qe2 {[%emt 0:01:34]} exd4 {[%emt 0:03:08]} 9. Nxd4 {[%emt 0:00:12]} Nb6 {[%emt 0:00:08]} 10. Bb3 {[%emt 0:05:40]} Bg4 {[%emt 0:11:25]} 11. f3 {[%emt 0:01:53]} Bd7 {[%emt 0:02:43]} 12. Rd1 {[%emt 0:01:57]} Qc8 {[%emt 0:06:03]} 13. Be3 {[%emt 0:05:39]} Ne8 {[%emt 0:13:02]} 14. Ndb5 {[%emt 0:11:33]} Bxb5 {[%emt 0:02:20]} 15. Nxb5 {[%emt 0:01:07]} Ra6 {[%emt 0:02:07]} 16. Rd2 {[%emt 0:03:18]} Bf6 {[%emt 0:02:45]} 17. c3 {[%emt 0:00:45]} h6 {[%emt 0:04:56]} 18. Rad1 {[%emt 0:01:25]} Kh7 {[%emt 0:04:54]} 19. f4 {[%emt 0:01:50]} g6 {[%emt 0:01:16]} 20. e5 {[%emt 0:04:16]} Be7 {[%emt 0:00:35]} 21. Bc2 {[%emt 0:09:19]} dxe5 {[%emt 0:03:35]} 22. fxe5 {[%emt 0:00:09]} Qe6 {[%emt 0:00:32]} 23. Qh5 {[%emt 0:02:02]} Nc4 {[%emt 0:01:18]} 24. Qxh6+ {[%emt 0:02:48]} Kg8 {[%emt 0:00:15]} 25. Bb3 {[%emt 0:01:22]} Rc6 {[%emt 0:01:00]} 26. Nd4 {[%emt 0:01:15]} Bc5 {[%emt 0:01:08]} 27. Bxc4 {[%emt 0:02:00]} Qxc4 {[%emt 0:00:23]} 28. Nxc6 {[%emt 0:00:10]} Bxe3+ {[%emt 0:00:28]} 29. Qxe3 {[%emt 0:00:07]} Qxc6 {[%emt 0:00:05]} 30. b3 {[%emt 0:00:11]} Ng7 {[%emt 0:00:11]} 31. Rd8 {[%emt 0:00:45]} Rxd8 {[%emt 0:00:39]} 32. Rxd8+ {[%emt 0:00:05]} Ne8 {[%emt 0:01:37]} 33. Qf3 {[%emt 0:02:23]} Qc5+ {[%emt 0:00:10]} 34. Kf1 {[%emt 0:00:35]} Qxe5 {[%emt 0:00:12]} 35. h3 {[%emt 0:01:24]} Kg7 {[%emt 0:00:15]} 36. Rd5 {[%emt 0:01:39]} Qe6 {[%emt 0:01:02]} 37. c4 {[%emt 0:01:03]} b6 {[%emt 0:00:30]} 38. Qe2 {[%emt 0:00:54]} Qf6+ {[%emt 0:00:27]} 39. Kg1 {[%emt 0:01:07]} Qa1+ {[%emt 0:01:21]} 40. Rd1 1-0

[Event "URU-ch Women 2021"]
[Site "Montevideo"]
[Date "2021.03.04"]
[Round "1.3"]
[White "Silvera, Pilar"]
[Black "Roepke, Sofia"]
[Result "0-1"]
[ECO "C54"]
[WhiteElo "1453"]
[BlackElo "1562"]
[Annotator "NA RC"]
[PlyCount "148"]
[EventDate "2021.03.04"]
[EventType "tourn"]
[EventCountry "URU"]
[SourceTitle "playchess.com"]
[Source "ChessBase"]
[SourceQuality "1"]
[TimeControl "3600+30"]

1. e4 {[%emt 0:00:03]} e5 {[%emt 0:00:14]} 2. Nf3 {[%emt 0:00:03]} Nc6 {[%emt 0:00:04]} 3. Bc4 {[%emt 0:00:07]} Bc5 {[%emt 0:00:02]} 4. c3 {[%emt 0:00:08]} Nf6 {[%emt 0:00:04]} 5. d3 {[%emt 0:00:05]} d6 {[%emt 0:00:07]} 6. O-O {[%emt 0:00:55]} a5 {[%emt 0:01:53]} 7. a4 {[%emt 0:00:49]} h6 {[%emt 0:01:02]} 8. Nbd2 {[%emt 0:00:32]} O-O {[%emt 0:00:48]} 9. h3 {[%emt 0:01:34]} Be6 {[%emt 0:03:26]} 10. Bb3 {[%emt 0:02:05]} Ba7 {[%emt 0:06:21]} 11. Bc2 {[%emt 0:04:04]} d5 {[%emt 0:03:22]} 12. exd5 {[%emt 0:02:17]} Bxd5 {[%emt 0:04:43]} 13. Re1 {[%emt 0:00:53]} Re8 {[%emt 0:00:29]} 14. Ne4 {[%emt 0:00:14]} Nxe4 {[%emt 0:02:30]} 15. dxe4 {[%emt 0:00:10]} Be6 {[%emt 0:00:10]} 16. Qe2 {[%emt 0:01:19]} Qf6 {[%emt 0:01:24]} 17. Be3 {[%emt 0:01:17]} Bxe3 {[%emt 0:01:00]} 18. Qxe3 {[%emt 0:00:03]} Rad8 {[%emt 0:01:51]} 19. Rad1 {[%emt 0:00:54]} b6 {[%emt 0:03:46]} 20. Qe2 {[%emt 0:01:13]} Ne7 {[%emt 0:00:56]} 21. Nh2 {[%emt 0:04:48]} Ng6 {[%emt 0:01:26]} 22. Qf3 {[%emt 0:03:56]} Nf4 {[%emt 0:03:18]} 23. Kh1 {[%emt 0:10:34]} Bc4 {[%emt 0:10:01]} 24. Ng4 {[%emt 0:04:12]} Qg5 {[%emt 0:01:11]} 25. Rxd8 {[%emt 0:00:16]} Rxd8 {[%emt 0:00:04]} 26. Ne3 {[%emt 0:00:13]} Be6 {[%emt 0:02:03]} 27. Nf1 {[%emt 0:04:59]} h5 {[%emt 0:04:29]} 28. Rd1 {[%emt 0:03:54]} Rxd1 {[%emt 0:02:18]} 29. Bxd1 {[%emt 0:00:03]} Bc4 {[%emt 0:03:56]} 30. Ne3 {[%emt 0:00:49]} Ba6 {[%emt 0:00:51]} 31. Bb3 {[%emt 0:00:38]} Qg6 {[%emt 0:00:20]} 32. Nd5 {[%emt 0:01:09]} Nxd5 {[%emt 0:00:22]} 33. Bxd5 {[%emt 0:00:08]} Kf8 {[%emt 0:02:38]} 34. Kh2 {[%emt 0:00:22]} Ke7 {[%emt 0:00:51]} 35. Qg3 {[%emt 0:00:07]} Qf6 {[%emt 0:01:19]} 36. Qe3 {[%emt 0:01:50]} h4 {[%emt 0:02:06]} 37. Kg1 {[%emt 0:00:11]} g5 {[%emt 0:00:43]} 38. Bb3 {[%emt 0:04:49]} Bb7 {[%emt 0:01:12]} 39. Bc4 {[%emt 0:00:42]} Bc6 {[%emt 0:00:25]} 40. Qe2 {[%emt 0:00:20]} Qf4 {[%emt 0:00:27]} 41. Bd3 {[%emt 0:00:48]} Bxa4 {[%emt 0:00:20]} 42. f3 {[%emt 0:00:19]} Qc1+ {[%emt 0:00:26]} 43. Kh2 {[%emt 0:00:04]} f6 {[%emt 0:01:01]} 44. Bb5 {[%emt 0:00:49]} Qd1 {[%emt 0:01:02]} 45. Qc4 {[%emt 0:00:23]} Bxb5 {[%emt 0:00:07]} 46. Qxb5 {[%emt 0:00:09]} Qd7 {[%emt 0:00:36]} 47. Qc4 {[%emt 0:00:05]} b5 {[%emt 0:01:13]} 48. Qg8 {[%emt 0:01:50]} Qe8 {[%emt 0:00:37]} 49. Qxe8+ {[%emt 0:01:24]} Kxe8 {[%emt 0:00:03]} 50. Kg1 {[%emt 0:00:00]} c5 {[%emt 0:01:18]} 51. Kf2 {[%emt 0:00:07]} b4 {[%emt 0:00:30]} 52. Ke2 {[%emt 0:01:34]} bxc3 {[%emt 0:00:37]} 53. bxc3 {[%emt 0:00:00]} c4 {[%emt 0:01:39]} 54. Kd2 {[%emt 0:00:05]} Kf7 {[%emt 0:01:45]} 55. Kc2 {[%emt 0:01:24]} Kg6 {[%emt 0:00:08]} 56. Kb2 {[%emt 0:00:06]} f5 {[%emt 0:00:01]} 57. Ka3 {[%emt 0:00:02]} fxe4 {[%emt 0:00:06]} 58. fxe4 {[%emt 0:00:07]} g4 {[%emt 0:00:03]} 59. Ka4 {[%emt 0:00:19]} gxh3 {[%emt 0:00:12]} 60. gxh3 {[%emt 0:00:00]} Kg5 {[%emt 0:00:02]} 61. Kb5 {[%emt 0:00:22]} Kf4 {[%emt 0:00:18]} 62. Kxc4 {[%emt 0:00:03]} Kxe4 {[%emt 0:02:13]} 63. Kb5 {[%emt 0:00:24]} a4 {[%emt 0:00:15]} 64. Kxa4 {[%emt 0:00:13]} Kd3 {[%emt 0:00:04]} 65. Kb4 {[%emt 0:00:07]} e4 {[%emt 0:00:02]} 66. c4 {[%emt 0:00:02]} e3 {[%emt 0:00:01]} 67. c5 {[%emt 0:00:01]} e2 {[%emt 0:00:01]} 68. Kb5 {[%emt 0:00:01]} e1=Q {[%emt 0:00:01]} 69. c6 {[%emt 0:00:01]} Qc1 {[%emt 0:00:05]} 70. Kb6 {[%emt 0:00:03]} Qe3+ {[%emt 0:00:18]} 71. Kb7 {[%emt 0:00:02]} Qxh3 {[%emt 0:00:04]} 72. c7 {[%emt 0:00:02]} Qd7 {[%emt 0:00:02]} 73. Kb8 {[%emt 0:00:02]} Qxc7+ {[%emt 0:00:03]} 74. Kxc7 {[%emt 0:00:02]} h3 {[%emt 0:00:00]} 0-1

[Event "URU-ch Women 2021"]
[Site "Montevideo"]
[Date "2021.03.05"]
[Round "2.1"]
[White "Larrea, Daniela"]
[Black "Silvera, Pilar"]
[Result "1-0"]
[ECO "A85"]
[WhiteElo "1705"]
[BlackElo "1410"]
[Annotator "NA RC"]
[PlyCount "53"]
[EventDate "2021.03.04"]
[EventType "tourn"]
[EventCountry "URU"]
[SourceTitle "playchess.com"]
[Source "ChessBase"]
[SourceQuality "1"]
[TimeControl "3600+30"]

1. d4 {[%emt 0:00:00]} f5 {[%emt 0:00:00]} 2. c4 {[%emt 0:00:12]} Nf6 {[%emt 0:00:00]} 3. Nc3 {[%emt 0:00:10]} e6 {[%emt 0:00:00]} 4. g3 {[%emt 0:00:07]} d5 {[%emt 0:00:03]} 5. Bg2 {[%emt 0:00:07]} c6 {[%emt 0:00:08]} 6. b3 {[%emt 0:00:13]} Bd6 {[%emt 0:00:08]} 7. Nh3 {[%emt 0:00:05]} O-O {[%emt 0:00:14]} 8. O-O {[%emt 0:00:09]} Nbd7 {[%emt 0:00:07]} 9. Qc2 {[%emt 0:00:44]} dxc4 {[%emt 0:33:40]} 10. bxc4 {[%emt 0:00:15]} Qa5 {[%emt 0:00:08]} 11. Ng5 {[%emt 0:13:42]} Bb4 {[%emt 0:10:28]} 12. Na4 {[%emt 0:04:35]} Nb6 {[%emt 0:02:09]} 13. Nxb6 {[%emt 0:02:35]} Qxb6 {[%emt 0:00:19]} 14. c5 {[%emt 0:04:28]} Qa5 {[%emt 0:06:47]} 15. Rb1 {[%emt 0:02:57]} Nd5 {[%emt 0:03:14]} 16. Bb2 {[%emt 0:07:29]} Qd8 {[%emt 0:01:08]} 17. Nf3 {[%emt 0:00:25]} Ba5 {[%emt 0:00:11]} 18. Bc1 {[%emt 0:09:00]} Bc7 {[%emt 0:03:53]} 19. Rb3 {[%emt 0:02:44]} Qe7 {[%emt 0:01:55]} 20. e4 {[%emt 0:03:13]} fxe4 {[%emt 0:02:31]} 21. Qxe4 {[%emt 0:00:05]} Nf6 {[%emt 0:00:09]} 22. Qc2 {[%emt 0:05:12]} Nd5 {[%emt 0:01:48]} 23. Ng5 {[%emt 0:03:33]} Nf6 {[%emt 0:01:19]} 24. Rf3 {[%emt 0:02:02]} g6 {[%emt 0:01:04]} 25. Ne4 {[%emt 0:02:53]} Kg7 {[%emt 0:00:31]} 26. Bg5 {[%emt 0:00:30]} h6 {[%emt 0:00:31]} 27. Bxf6+ {[%emt 0:00:07]} 1-0

[Event "URU-ch Women 2021"]
[Site "Montevideo"]
[Date "2021.03.05"]
[Round "2.2"]
[White "Silva Rosas, Natalia"]
[Black "Quevedo, Andreina"]
[Result "1/2-1/2"]
[ECO "A01"]
[WhiteElo "1771"]
[BlackElo "1867"]
[Annotator "NA RC"]
[PlyCount "120"]
[EventDate "2021.03.04"]
[EventType "tourn"]
[EventCountry "URU"]
[SourceTitle "playchess.com"]
[Source "ChessBase"]
[SourceQuality "1"]
[TimeControl "3600+30"]

{[%evp 29,120,-181,-156,-174,32767,-182,-86,32767,32767,32767,32767,32767,-141,32767,-185,-164,-219,-217,-135,-141,-125,-164,-191,-220,-78,-113,-94,-172,-179,-184,-38,-238,-279,-274,-168,-232,-112,-114,-110,-117,-83,-152,-141,-138,-74,-65,0,-879,-1005,-931,-77,-77,-59,-66,-65,-132,-227,-248,-60,-66,-64,-78,-25,-33,-23,-38,-8,-14,0,-27,-32,-32,-43,-28,-46,-52,-46,-50,-50,-116,-89,-212,-211,-217,0,0,0,0,0,0,0,0,0]} 1. b3 {[%emt 0:12:35]} d5 {[%emt 0:00:32]} 2. Bb2 {[%emt 0:00:08]} c5 {[%emt 0:00:14]} 3. e3 {[%emt 0:00:16]} Nc6 {[%emt 0:00:20]} 4. Bb5 {[%emt 0:00:26]} Nf6 {[%emt 0:01:03]} 5. Nf3 {[%emt 0:00:15]} a6 {[%emt 0:00:54]} 6. Bxc6+ {[%emt 0:00:40]} bxc6 {[%emt 0:00:23]} 7. Ne5 {[%emt 0:00:42]} Qc7 {[%emt 0:01:26]} 8. f4 {[%emt 0:00:33]} e6 {[%emt 0:07:39]} 9. O-O {[%emt 0:00:08]} Bd6 {[%emt 0:00:39]} 10. Rf3 {[%emt 0:01:24]} O-O {[%emt 0:02:03]} 11. Rh3 {[%emt 0:00:50]} Bxe5 {[%emt 0:03:28]} 12. Bxe5 {[%emt 0:00:18]} Qe7 {[%emt 0:00:07]} 13. Rg3 {[%emt 0:09:42]} Kh8 {[%emt 0:01:36]} 14. Nc3 {[%emt 0:00:42]} Ne8 {[%emt 0:07:24] [#]} 15. Qh5 $2 {[%emt 0:10:57]} (15. Na4 $1 $16 {is forced if you want to stay better.}) 15... f6 {[%emt 0:03:28]} 16. Rh3 {[%emt 0:01:09]} h6 {[%emt 0:03:02]} 17. Qh4 {[%emt 0:01:22]} Qf7 {[%emt 0:02:04]} (17... Ra7 $19 18. Rf1 (18. Bb8 $2 Rb7 $19) 18... fxe5 19. fxe5 Rxf1+ 20. Kxf1 a5 21. Qxe7 Rxe7) 18. Ne2 {[%emt 0:05:28]} fxe5 {[%emt 0:00:06]} 19. fxe5 {[%emt 0:00:15]} Ra7 {[%emt 0:03:50]} 20. Nf4 {[%emt 0:00:22]} Kh7 {[%emt 0:11:57]} 21. Rg3 {[%emt 0:02:46]} Qf5 {[%emt 0:04:07]} 22. Nd3 {[%emt 0:04:18]} g5 {[%emt 0:03:26]} 23. Qa4 {[%emt 0:01:23]} Raf7 {[%emt 0:02:13]} 24. Rf3 {[%emt 0:02:50]} Qg6 {[%emt 0:00:11]} 25. Rxf7+ {[%emt 0:02:41]} Qxf7 {[%emt 0:00:02]} 26. Qxc6 {[%emt 0:00:22] [#]} Bb7 {[%emt 0:03:00]} (26... c4 $1 $19 {and Black stays clearly on top.} 27. bxc4 Bb7) 27. Qxc5 {[%emt 0:01:16]} Ng7 {[%emt 0:00:05]} 28. Qd4 {[%emt 0:00:54]} (28. Qa7 $17) 28... Nf5 {[%emt 0:01:17]} 29. Qg4 {[%emt 0:00:36]} Ne7 {[%emt 0:00:33]} (29... Nh4 $19 30. Qe2 d4) 30. h4 $2 {[%emt 0:00:46]} (30. Qe2 $15) 30... gxh4 {[%emt 0:01:23]} 31. Qxh4 {[%emt 0:01:37]} Ng6 {[%emt 0:00:17]} 32. Qd4 {[%emt 0:00:18]} (32. Qg3 $17) 32... Qc7 {[%emt 0:00:49]} ({Black should play} 32... a5 $19 33. Rb1 Qf5) 33. Nc5 {[%emt 0:00:23]} Bc8 {[%emt 0:00:44]} 34. Nd3 {[%emt 0:02:17]} Rf7 {[%emt 0:02:44]} 35. c4 {[%emt 0:00:41] [#]} (35. c3 $142) 35... dxc4 $1 {[%emt 0:00:57]} 36. Rc1 {[%emt 0:00:26]} Qa5 {[%emt 0:01:51]} ({Black should try} 36... Bb7 37. Rxc4 Qe7) 37. Rxc4 {[%emt 0:00:25]} Rd7 {[%emt 0:00:37]} 38. Qe4 $2 {[%emt 0:01:08]} (38. Qc3 $11 Qxc3 39. Rxc3) 38... Bb7 {[%emt 0:00:14]} 39. Qg4 {[%emt 0:02:24]} Rxd3 $2 {[%emt 0:01:49]} (39... Qxd2 $19 {has better winning chances.} 40. Kh2 Rxd3 41. Rc7+ Rd7 42. Rxd7+ Qxd7) 40. Qxe6 {[%emt 0:00:10]} Qxe5 {[%emt 0:00:04]} 41. Qf7+ {[%emt 0:00:23]} Qg7 {[%emt 0:00:09]} 42. Qxg7+ {[%emt 0:00:45]} Kxg7 {[%emt 0:00:01]} 43. Rc7+ {[%emt 0:00:01] [#]} Kg8 $2 {[%emt 0:00:09]} (43... Kf6 $1 $19 44. Rxb7 Rxd2 45. Rb6+ Kg5 46. Rxa6 Nh4) 44. Rxb7 {[%emt 0:00:04]} Rxd2 {[%emt 0:00:15]} 45. a4 {[%emt 0:00:22]} Re2 {[%emt 0:00:15]} (45... Nh4 $17 46. Rb4 Nf5) 46. Rb6 {[%emt 0:00:14]} Kg7 {[%emt 0:00:46]} 47. Rxa6 {[%emt 0:00:17]} Rxe3 {[%emt 0:00:04]} 48. b4 {[%emt 0:00:10]} Ne7 {[%emt 0:02:44]} 49. Kf2 {[%emt 0:00:06]} Rb3 {[%emt 0:00:05]} 50. b5 {[%emt 0:00:19]} Nd5 {[%emt 0:00:16]} 51. Ra7+ {[%emt 0:02:57]} Kg6 {[%emt 0:00:17]} 52. Rd7 {[%emt 0:01:36]} Nc3 {[%emt 0:00:36]} 53. Rd6+ {[%emt 0:00:41]} Kg5 {[%emt 0:00:19]} 54. Ra6 {[%emt 0:00:43]} (54. Rd4 $15) 54... Rb4 {[%emt 0:01:32]} 55. b6 {[%emt 0:01:52]} (55. a5 $17) 55... Nxa4 {[%emt 0:00:25]} 56. b7 {[%emt 0:00:33]} Rxb7 $2 {[%emt 0:00:56]} (56... Nc3 $19 57. Rc6 Ne4+ 58. Kf3 Nf6 59. Rc5+ Kg6) 57. Rxa4 {[%emt 0:00:01]} Rb3 {[%emt 0:00:10]} 58. g3 {[%emt 0:00:30]} h5 {[%emt 0:00:16]} 59. Kg2 {[%emt 0:00:37]} Rc3 {[%emt 0:00:06]} 60. Kh3 {[%emt 0:00:18]} Rc5 $11 {[%emt 0:00:20]} 1/2-1/2

[Event "URU-ch Women 2021"]
[Site "Montevideo"]
[Date "2021.03.05"]
[Round "2.3"]
[White "Sosa, Ines"]
[Black "Fabra, Nahiara"]
[Result "1-0"]
[ECO "B21"]
[WhiteElo "1167"]
[BlackElo "1419"]
[Annotator "NA RC"]
[PlyCount "57"]
[EventDate "2021.03.04"]
[EventType "tourn"]
[EventCountry "URU"]
[SourceTitle "playchess.com"]
[Source "ChessBase"]
[SourceQuality "1"]
[TimeControl "3600+30"]

1. e4 {[%emt 0:00:00]} c5 {[%emt 0:01:00]} 2. d4 {[%emt 0:00:03]} cxd4 {[%emt 0:00:45]} 3. c3 {[%emt 0:00:09]} dxc3 {[%emt 0:02:01]} 4. Nxc3 {[%emt 0:00:11]} d6 {[%emt 0:03:33]} 5. Bc4 {[%emt 0:02:26]} e6 {[%emt 0:05:09]} 6. Nf3 {[%emt 0:01:33]} Be7 {[%emt 0:01:30]} 7. O-O {[%emt 0:03:21]} Nf6 {[%emt 0:01:37]} 8. Qe2 {[%emt 0:01:42]} O-O {[%emt 0:00:58]} 9. Rd1 {[%emt 0:01:15]} Nc6 {[%emt 0:11:30]} 10. e5 {[%emt 0:07:10]} Ne8 {[%emt 0:09:08]} 11. Bf4 {[%emt 0:04:19]} d5 {[%emt 0:02:50]} 12. Bb3 {[%emt 0:07:26]} a6 {[%emt 0:04:56]} 13. Rac1 {[%emt 0:03:13]} b5 {[%emt 0:04:56]} 14. Nxd5 {[%emt 0:02:46]} Bd7 {[%emt 0:05:06]} 15. Nxe7+ {[%emt 0:04:51]} Qxe7 {[%emt 0:03:20]} 16. Qd3 {[%emt 0:03:48]} Ra7 {[%emt 0:03:54]} 17. a3 {[%emt 0:02:45]} Na5 {[%emt 0:02:11]} 18. Be3 {[%emt 0:03:26]} Nxb3 {[%emt 0:02:01]} 19. Qxb3 {[%emt 0:00:18]} Rc7 {[%emt 0:00:40]} 20. Qd3 {[%emt 0:03:28]} Bc8 {[%emt 0:01:04]} 21. Rxc7 {[%emt 0:01:12]} Nxc7 {[%emt 0:00:56]} 22. Qd6 {[%emt 0:00:32]} Qxd6 {[%emt 0:00:36]} 23. exd6 {[%emt 0:00:27]} Nd5 {[%emt 0:00:06]} 24. Ne5 {[%emt 0:02:12]} Nxe3 {[%emt 0:01:12]} 25. fxe3 {[%emt 0:00:08]} f6 {[%emt 0:00:24]} 26. d7 {[%emt 0:00:53]} fxe5 {[%emt 0:00:39]} 27. d8=Q {[%emt 0:00:14]} Rxd8 {[%emt 0:00:35]} 28. Rxd8+ {[%emt 0:00:08]} Kf7 {[%emt 0:00:06]} 29. Rxc8 {[%emt 0:00:09]} 1-0

[Event "URU-ch Women 2021"]
[Site "Montevideo"]
[Date "2021.03.05"]
[Round "3.1"]
[White "Quevedo, Andreina"]
[Black "Sosa, Ines"]
[Result "1-0"]
[ECO "A22"]
[WhiteElo "1867"]
[BlackElo "1167"]
[Annotator "NA RC"]
[PlyCount "90"]
[EventDate "2021.03.04"]
[EventType "tourn"]
[EventCountry "URU"]
[SourceTitle "playchess.com"]
[Source "ChessBase"]
[SourceQuality "1"]
[TimeControl "3600+30"]

{[%evp 8,90,11,19,18,12,25,28,22,0,21,0,14,25,35,17,43,34,43,22,93,72,63,43,81,46,68,18,33,19,20,35,37,40,63,47,52,44,66,47,57,22,63,74,54,45,72,45,50,81,101,0,31,25,14,0,432,340,370,329,554,566,644,657,609,610,805,842,990,1266,1170,1326,814,5327,4890,11950,5700,12839,12842,12843,29981,29981,29984,12847,29990]} 1. c4 {[%emt 0:02:18]} e5 {[%emt 0:01:07]} 2. Nc3 {[%emt 0:00:13]} Nf6 {[%emt 0:01:24]} 3. g3 {[%emt 0:00:32]} Bc5 {[%emt 0:01:59]} 4. Bg2 {[%emt 0:00:38]} O-O {[%emt 0:02:39]} 5. e3 {[%emt 0:00:43]} Nc6 {[%emt 0:03:23]} 6. a3 {[%emt 0:03:16]} a5 {[%emt 0:03:29]} 7. Nge2 {[%emt 0:02:54]} d6 {[%emt 0:02:45]} 8. Qc2 {[%emt 0:01:13]} Be6 {[%emt 0:03:00]} 9. Nd5 {[%emt 0:04:43]} Bxd5 {[%emt 0:03:42]} 10. cxd5 {[%emt 0:00:21]} Ne7 {[%emt 0:00:58]} 11. Nc3 {[%emt 0:00:36]} c6 {[%emt 0:02:50]} 12. dxc6 {[%emt 0:00:33]} bxc6 {[%emt 0:00:15]} 13. O-O {[%emt 0:00:30]} Ned5 {[%emt 0:04:06]} ({Black should play} 13... Qd7 $14) 14. Rd1 {[%emt 0:04:03]} Qd7 {[%emt 0:07:21]} 15. b3 {[%emt 0:17:07]} Bb6 {[%emt 0:05:13]} 16. Bb2 {[%emt 0:01:15]} Rfe8 {[%emt 0:03:04]} 17. Ne2 {[%emt 0:05:34]} Rac8 {[%emt 0:03:09]} 18. d4 {[%emt 0:05:45]} e4 {[%emt 0:03:53]} 19. Nc3 {[%emt 0:03:18]} Nxc3 {[%emt 0:02:10]} 20. Bxc3 {[%emt 0:00:05]} d5 {[%emt 0:01:16]} 21. b4 {[%emt 0:00:43]} Ra8 {[%emt 0:02:20]} 22. bxa5 {[%emt 0:03:25]} Bxa5 {[%emt 0:00:22]} 23. Rdc1 {[%emt 0:00:13]} Rec8 {[%emt 0:01:52]} 24. Bf1 {[%emt 0:03:04]} c5 {[%emt 0:04:41]} 25. Bxa5 {[%emt 0:01:18]} Rxa5 {[%emt 0:00:26]} 26. dxc5 {[%emt 0:00:12]} Raxc5 {[%emt 0:02:18]} 27. Qxc5 {[%emt 0:00:11]} Rxc5 {[%emt 0:00:05]} 28. Rxc5 {[%emt 0:00:03]} g6 {[%emt 0:00:30] [#]} (28... h5 $11 {remains equal.}) 29. a4 {[%emt 0:00:16]} (29. Rc2 $1 $16) 29... Qa7 {[%emt 0:00:47]} 30. Rc8+ {[%emt 0:04:01]} Kg7 {[%emt 0:00:32]} 31. a5 {[%emt 0:00:52]} Nd7 $2 {[%emt 0:01:22]} (31... d4 $11 {and Black is okay.} 32. exd4 Qxd4) 32. Rcc1 {[%emt 0:01:11]} Nc5 {[%emt 0:01:03]} 33. Rcb1 {[%emt 0:00:45]} Kh6 {[%emt 0:01:31]} 34. a6 {[%emt 0:00:34]} f6 {[%emt 0:00:51]} 35. Rb5 {[%emt 0:01:58]} Nxa6 {[%emt 0:00:26]} 36. Rba5 {[%emt 0:00:05]} Qb6 {[%emt 0:00:38]} 37. Rxa6 {[%emt 0:00:05]} Qb3 {[%emt 0:00:26]} 38. Rxf6 {[%emt 0:00:29]} Qb2 {[%emt 0:00:28]} 39. Rfa6 {[%emt 0:00:05]} d4 {[%emt 0:00:32]} 40. exd4 {[%emt 0:00:11]} Qxd4 {[%emt 0:00:19]} 41. R6a4 {[%emt 0:01:15]} Qc3 {[%emt 0:00:31]} 42. R1a3 {[%emt 0:00:40]} Qb2 {[%emt 0:00:36]} 43. Re3 {[%emt 0:00:46]} Qc2 {[%emt 0:00:36]} 44. Raxe4 {[%emt 0:00:17]} Qc5 {[%emt 0:00:29]} 45. h4 $18 {[%emt 0:00:39]} (45. Re7 $142 Qd6 46. R3e6 Qd8 47. Rf7 Kg5 48. Re5+ Kh6 49. Ree7 Qg8 50. h4) 45... Qd5 1-0